fUST/lending_fUST_20241108
["ID","MTS","AMOUNT","RATE_DAILY","PERIOD"]
[341643975,1731057038170,-573.41,0.00021917,2]
[341643977,1731057038181,-573.41,0.00021917,2]
[341643979,1731057038190,-573.41,0.00021917,2]
[341643981,1731057038199,-500.0,0.00021917,2]
[341643983,1731057038210,-500.0,0.00021917,2]
[341643985,1731057038219,-1361.54,0.00021917,2]
[341643987,1731057038228,-500.0,0.00021917,2]
[341643989,1731057038237,-500.0,0.00021917,2]
[341643990,1731057038246,-547.66,0.00021917,2]
[341643992,1731057038255,-500.0,0.00021917,2]
[341643994,1731057038264,-693.97,0.00021917,2]
[341643996,1731057038273,-500.0,0.00021917,2]
[341643997,1731057038283,-1290.13,0.00021917,2]
[341643999,1731057038293,-500.0,0.00021917,2]
[341644001,1731057038302,-500.0,0.00021917,2]
[341644003,1731057038311,-500.0,0.00021917,2]
[341644005,1731057038320,-577.92700019,0.00021917,2]
[341644007,1731057038329,-500.0,0.00021917,2]
[341644009,1731057038338,-500.0,0.00021917,2]
[341644011,1731057038347,-500.0,0.00021917,2]
[341644014,1731057038357,-500.0,0.00021917,2]
[341644016,1731057038366,-207.60230145,0.00021917,2]
[341644018,1731057038375,-662.38,0.00021917,2]
[341644020,1731057038384,-500.0,0.00021917,2]
[341644021,1731057038393,-500.0,0.00021917,2]
[341644022,1731057038402,-500.0,0.00021917,2]
[341644023,1731057038411,-500.0,0.00021917,2]
[341644024,1731057038422,-500.0,0.00021917,2]
[341644025,1731057038431,-500.0,0.00021917,2]
[341644026,1731057038440,-500.0,0.00021917,2]
[341644027,1731057038449,-500.0,0.00021917,2]
[341644028,1731057038458,-530.9419479,0.00021917,2]
[341644029,1731057038468,-500.0,0.00021917,2]
[341644030,1731057038477,-500.0,0.00021917,2]
[341644031,1731057038486,-520.5645693,0.00021917,2]
[341644032,1731057038495,-500.0,0.00021917,2]
[341644033,1731057038504,-500.0,0.00021917,2]
[341644034,1731057038514,-500.0,0.00021917,2]
[341644035,1731057038523,-500.0,0.00021917,2]
[341644036,1731057038532,-500.0,0.00021917,2]
[341644037,1731057038650,-500.0,0.00021917,2]
[341644038,1731057038660,-364.62823076,0.00021917,2]
[341644039,1731057038670,-500.0,0.00021917,2]
[341644040,1731057038679,-500.0,0.00021917,2]
[341644041,1731057038688,-500.0,0.00021917,2]
[341644042,1731057038698,-509.07742221,0.00021917,2]
[341644043,1731057038707,-500.0,0.00021917,2]
[341644044,1731057038716,-500.0,0.00021917,2]
[341644045,1731057038725,-500.0,0.00021917,2]
[341644046,1731057038736,-163.53043629,0.00021917,2]
[341644047,1731057038745,-500.0,0.00021917,2]
[341644048,1731057038755,-533.67,0.00021917,2]
[341644049,1731057038764,-500.0,0.00021917,2]
[341644050,1731057038774,-500.0,0.00021917,2]
[341644051,1731057038783,-500.0,0.00021917,2]
[341644052,1731057038792,-500.0,0.00021917,2]
[341644053,1731057038801,-500.0,0.00021917,2]
[341644054,1731057038810,-500.0,0.00021917,2]
[341644055,1731057038819,-500.0,0.00021917,2]
[341644056,1731057038828,-2641.07,0.00021917,2]
[341644057,1731057038838,-500.0,0.00021917,2]
[341644058,1731057038847,-500.0,0.00021917,2]
[341644059,1731057038856,-9030.15,0.00021917,2]
[341644060,1731057038864,-500.0,0.00021917,2]
[341644061,1731057038873,-500.0,0.00021917,2]
[341644062,1731057038883,-322.31847983,0.00021917,2]
[341644063,1731057038892,-500.0,0.00021917,2]
[341644064,1731057038901,-518.99533167,0.00021917,2]
[341644065,1731057038910,-500.0,0.00021917,2]
[341644066,1731057038919,-500.0,0.00021917,2]
[341644067,1731057038928,-500.0,0.00021917,2]
[341644068,1731057038937,-517.33548939,0.00021917,2]
[341644069,1731057038946,-500.0,0.00021917,2]
[341644070,1731057038955,-500.0,0.00021917,2]
[341644071,1731057038965,-500.0,0.00021917,2]
[341644072,1731057038975,-500.0,0.00021917,2]
[341644073,1731057038984,-500.0,0.00021917,2]
[341644074,1731057038993,-8875.04,0.00021917,2]
[341644075,1731057039002,-192.11489975,0.00021917,2]
[341644076,1731057039012,-507.43,0.00021917,2]
[341644077,1731057039021,-500.0,0.00021917,2]
[341644078,1731057039030,-482.14960203,0.00021917,2]
[341644079,1731057039039,-500.0,0.00021917,2]
[341644080,1731057039048,-500.0,0.00021917,2]
[341644081,1731057039057,-581.74421242,0.00021917,2]
[341644082,1731057039066,-500.0,0.00021917,2]
[341644083,1731057039075,-500.0,0.00021917,2]
[341644084,1731057039085,-500.0,0.00021917,2]
[341644085,1731057039095,-500.0,0.00021917,2]
[341644086,1731057039104,-834.34,0.00021917,2]
[341644087,1731057039113,-905.34,0.00021917,2]
[341644088,1731057039122,-250.0,0.00021917,2]
[341644089,1731057039133,-500.0,0.00021917,2]
[341644090,1731057039146,-500.0,0.00021917,2]
[341644091,1731057039156,-500.0,0.00021917,2]
[341644092,1731057039165,-500.0,0.00021917,2]
[341644093,1731057039178,-500.0,0.00021917,2]
[341644094,1731057039188,-500.0,0.00021917,2]
[341644095,1731057039197,-500.0,0.00021917,2]
[341644096,1731057039206,-500.0,0.00021917,2]
[341644097,1731057039218,-500.0,0.00021917,2]
[341644098,1731057039228,-627.58,0.00021917,2]
[341644099,1731057039237,-500.0,0.00021917,2]
[341644100,1731057039246,-209.84903061,0.00021917,2]
[341644101,1731057039255,-500.0,0.00021917,2]
[341644102,1731057039264,-500.0,0.00021917,2]
[341644103,1731057039273,-487.27084624,0.00021917,2]
[341644104,1731057039283,-626.09,0.00021917,2]
[341644105,1731057039292,-523.52651081,0.00021917,2]
[341644106,1731057039301,-500.0,0.00021917,2]
[341644107,1731057039310,-500.0,0.00021917,2]
[341644108,1731057039319,-500.0,0.00021917,2]
[341644110,1731057039328,-500.0,0.00021917,2]
[341644112,1731057039337,-500.0,0.00021917,2]
[341644113,1731057039346,-500.0,0.00021917,2]
[341644114,1731057039356,-500.0,0.00021917,2]
[341644115,1731057039365,-597.24545072,0.00021917,2]
[341644116,1731057039375,-3703.24,0.00021917,2]
[341644117,1731057039384,-507.95479792,0.00021917,2]
[341644118,1731057039394,-917.0,0.00021917,2]
[341644119,1731057039403,-500.0,0.00021917,2]
[341644120,1731057039413,-500.0,0.00021917,2]
[341644121,1731057039425,-244.62029407,0.00021917,2]
[341644122,1731057039434,-500.0,0.00021917,2]
[341644124,1731057039443,-500.0,0.00021917,2]
[341644126,1731057039452,-500.0,0.00021917,2]
[341644128,1731057039462,-549.64,0.00021917,2]
[341644131,1731057039471,-500.0,0.00021917,2]
[341644134,1731057039481,-500.0,0.00021917,2]
[341644135,1731057039490,-500.0,0.00021917,2]
[341644136,1731057039500,-500.0,0.00021917,2]
[341644137,1731057039509,-710.32,0.00021917,2]
[341644138,1731057039518,-500.0,0.00021917,2]
[341644139,1731057039528,-500.0,0.00021917,2]
[341644140,1731057039537,-500.0,0.00021917,2]
[341644141,1731057039546,-500.0,0.00021917,2]
[341644143,1731057039555,-500.0,0.00021917,2]
[341644144,1731057039564,-544.36671135,0.00021917,2]
[341644145,1731057039573,-500.0,0.00021917,2]
[341644146,1731057039583,-500.0,0.00021917,2]
[341644147,1731057039592,-500.0,0.00021917,2]
[341644148,1731057039601,-500.0,0.00021917,2]
[341644149,1731057039610,-500.0,0.00021917,2]
[341644151,1731057039620,-500.0,0.00021917,2]
[341644153,1731057039629,-500.0,0.00021917,2]
[341644154,1731057039638,-500.0,0.00021917,2]
[341644155,1731057039647,-500.0,0.00021917,2]
[341644156,1731057039656,-2970.62,0.00021917,2]
[341644157,1731057039666,-500.0,0.00021917,2]
[341644159,1731057039676,-1133.84,0.00021917,2]
[341644160,1731057039685,-500.0,0.00021917,2]
[341644161,1731057039694,-500.0,0.00021917,2]
[341644162,1731057039703,-500.0,0.00021917,2]
[341644163,1731057039713,-500.0,0.00021917,2]
[341644164,1731057039722,-1014.33,0.00021917,2]
[341644165,1731057039732,-500.0,0.00021917,2]
[341644167,1731057039741,-622.25661589,0.00021917,2]
[341644168,1731057039750,-500.0,0.00021917,2]
[341644169,1731057039759,-500.0,0.00021917,2]
[341644170,1731057039769,-500.0,0.00021917,2]
[341644171,1731057039778,-4344.48,0.00021917,2]
[341644172,1731057039787,-500.0,0.00021917,2]
[341644173,1731057039797,-500.0,0.00021917,2]
[341644174,1731057039806,-484.97858307,0.00021917,2]
[341644175,1731057039815,-166.666666,0.00021918,2]
[341644176,1731057039824,-410.1468779,0.00022023,2]
[341644177,1731057039834,-573.41,0.0002219,2]
[341644178,1731057039843,-573.41,0.0002219,2]
[341644179,1731057039852,-260.19309471,0.0002219,2]
[341644180,1731057039861,-195.9972872,0.0002219,2]
[341644181,1731057039870,-272.09220424,0.00022191,2]
[341644182,1731057039880,-393.60869827,0.00022191,2]
[341644183,1731057039889,-500.0,0.00022191,2]
[341644184,1731057039898,-500.0,0.00022191,2]
[341644185,1731057039907,-500.0,0.00022191,2]
[341644186,1731057039916,-500.0,0.00022191,2]
[341644187,1731057039929,-500.0,0.00022191,2]
[341644188,1731057039938,-500.0,0.00022191,2]
[341644189,1731057039946,-653.1,0.00022191,2]
[341644190,1731057039957,-500.0,0.00022191,2]
[341644191,1731057039967,-500.0,0.00022191,2]
[341644192,1731057039976,-500.0,0.00022191,2]
[341644193,1731057039985,-500.0,0.00022191,2]
[341644194,1731057039994,-1361.54,0.00022191,2]
[341644195,1731057040004,-500.0,0.00022191,2]
[341644196,1731057040013,-500.0,0.00022191,2]
[341644197,1731057040022,-547.66,0.00022191,2]
[341644198,1731057040031,-500.0,0.00022191,2]
[341644199,1731057040042,-693.97,0.00022191,2]
[341644200,1731057040051,-1290.13,0.00022191,2]
[341644201,1731057040060,-500.0,0.00022191,2]
[341644202,1731057040069,-500.0,0.00022191,2]
[341644203,1731057040078,-500.0,0.00022191,2]
[341644204,1731057040088,-485.91707152,0.00022191,2]
[341644205,1731057040097,-500.0,0.00022191,2]
[341644206,1731057040107,-500.0,0.00022191,2]
[341644207,1731057040118,-662.38,0.00022191,2]
[341644208,1731057040128,-500.0,0.00022191,2]
[341644209,1731057040142,-500.0,0.00022191,2]
[341644210,1731057040151,-500.0,0.00022191,2]
[341644211,1731057040161,-500.0,0.00022191,2]
[341644212,1731057040170,-194.29626354,0.00022191,2]
[341644213,1731057040180,-529.56547606,0.00022191,2]
[341644214,1731057040190,-500.0,0.00022191,2]
[341644215,1731057040201,-500.0,0.00022191,2]
[341644216,1731057040213,-500.0,0.00022191,2]
[341644217,1731057040223,-500.0,0.00022191,2]
[341644218,1731057040232,-500.0,0.00022191,2]
[341644219,1731057040241,-500.0,0.00022191,2]
[341644220,1731057040250,-646.71601174,0.00022191,2]
[341644221,1731057040260,-500.0,0.00022191,2]
[341644222,1731057040268,-500.0,0.00022191,2]
[341644223,1731057040278,-500.0,0.00022191,2]
[341644224,1731057040287,-500.0,0.00022191,2]
[341644225,1731057040296,-500.0,0.00022191,2]
[341644226,1731057040305,-500.0,0.00022191,2]
[341644227,1731057040314,-500.0,0.00022191,2]
[341644228,1731057040323,-533.67,0.00022191,2]
[341644229,1731057040332,-500.0,0.00022191,2]
[341644230,1731057040341,-500.0,0.00022191,2]
[341644231,1731057040351,-500.0,0.00022191,2]
[341644232,1731057040359,-500.0,0.00022191,2]
[341644233,1731057040368,-500.0,0.00022191,2]
[341644234,1731057040377,-500.0,0.00022191,2]
[341644235,1731057040386,-2641.07,0.00022191,2]
[341644236,1731057040395,-500.0,0.00022191,2]
[341644237,1731057040405,-500.0,0.00022191,2]
[341644238,1731057040414,-9030.15,0.00022191,2]
[341644239,1731057040424,-441.88722109,0.00022191,2]
[341644240,1731057040433,-500.0,0.00022191,2]
[341644241,1731057040442,-488.58438961,0.00022191,2]
[341644242,1731057040451,-613.27546781,0.00022191,2]
[341644243,1731057040460,-500.0,0.00022191,2]
[341644244,1731057040469,-500.0,0.00022191,2]
[341644245,1731057040478,-308.09432832,0.00022191,2]
[341644246,1731057040487,-500.0,0.00022191,2]
[341644247,1731057040497,-500.0,0.00022191,2]
[341644248,1731057040506,-500.0,0.00022191,2]
[341644249,1731057040516,-8875.04,0.00022191,2]
[341644250,1731057040525,-507.43,0.00022191,2]
[341644251,1731057040535,-500.0,0.00022191,2]
[341644252,1731057040544,-500.0,0.00022191,2]
[341644253,1731057040554,-500.0,0.00022191,2]
[341644254,1731057040564,-500.0,0.00022191,2]
[341644255,1731057040573,-500.0,0.00022191,2]
[341644256,1731057040582,-500.0,0.00022191,2]
[341644257,1731057040592,-500.0,0.00022191,2]
[341644258,1731057040601,-834.34,0.00022191,2]
[341644259,1731057040610,-905.34,0.00022191,2]
[341644260,1731057040619,-250.0,0.00022191,2]
[341644261,1731057040628,-500.0,0.00022191,2]
[341644262,1731057040638,-500.0,0.00022191,2]
[341644263,1731057040647,-500.0,0.00022191,2]
[341644264,1731057040740,-500.0,0.00022191,2]
[341644265,1731057040750,-500.0,0.00022191,2]
[341644266,1731057040759,-500.0,0.00022191,2]
[341644267,1731057040768,-500.0,0.00022191,2]
[341644268,1731057040778,-500.0,0.00022191,2]
[341644269,1731057040787,-500.0,0.00022191,2]
[341644270,1731057040796,-627.58,0.00022191,2]
[341644271,1731057040806,-500.0,0.00022191,2]
[341644272,1731057040815,-500.0,0.00022191,2]
[341644273,1731057040824,-500.0,0.00022191,2]
[341644274,1731057040833,-626.09,0.00022191,2]
[341644275,1731057040843,-500.0,0.00022191,2]
[341644276,1731057040853,-500.0,0.00022191,2]
[341644277,1731057040862,-500.0,0.00022191,2]
[341644278,1731057040871,-500.0,0.00022191,2]
[341644279,1731057040880,-430.11521447,0.00022191,2]
[341644280,1731057040889,-500.0,0.00022191,2]
[341644281,1731057040898,-500.0,0.00022191,2]
[341644282,1731057040907,-3703.24,0.00022191,2]
[341644283,1731057040916,-917.0,0.00022191,2]
[341644284,1731057040926,-500.0,0.00022191,2]
[341644285,1731057040935,-500.0,0.00022191,2]
[341644286,1731057040944,-500.0,0.00022191,2]
[341644287,1731057040953,-549.64,0.00022191,2]
[341644288,1731057040962,-500.0,0.00022191,2]
[341644289,1731057040970,-500.0,0.00022191,2]
[341644290,1731057040979,-500.0,0.00022191,2]
[341644291,1731057040988,-710.32,0.00022191,2]
[341644292,1731057040997,-500.0,0.00022191,2]
[341644293,1731057041006,-500.0,0.00022191,2]
[341644294,1731057041015,-500.0,0.00022191,2]
[341644295,1731057041024,-537.79849841,0.00022191,2]
[341644296,1731057041033,-500.0,0.00022191,2]
[341644297,1731057041043,-500.0,0.00022191,2]
[341644298,1731057041052,-500.0,0.00022191,2]
[341644299,1731057041061,-500.0,0.00022191,2]
[341644300,1731057041070,-500.0,0.00022191,2]
[341644301,1731057041079,-500.0,0.00022191,2]
[341644302,1731057041088,-500.0,0.00022191,2]
[341644303,1731057041097,-500.0,0.00022191,2]
[341644304,1731057041106,-500.0,0.00022191,2]
[341644305,1731057041115,-2970.62,0.00022191,2]
[341644306,1731057041124,-500.0,0.00022191,2]
[341644307,1731057041135,-1133.84,0.00022191,2]
[341644308,1731057041145,-500.0,0.00022191,2]
[341644309,1731057041154,-500.0,0.00022191,2]
[341644310,1731057041163,-1014.33,0.00022191,2]
[341644311,1731057041174,-500.0,0.00022191,2]
[341644312,1731057041183,-500.0,0.00022191,2]
[341644313,1731057041192,-500.0,0.00022191,2]
[341644314,1731057041201,-500.0,0.00022191,2]
[341644315,1731057041214,-4344.48,0.00022191,2]
[341644316,1731057041223,-500.0,0.00022191,2]
[341644317,1731057041232,-500.0,0.00022191,2]
[341644318,1731057041241,-410.1468779,0.00022228,2]
[341644319,1731057041249,-166.666666,0.00022431,2]
[341644320,1731057041260,-410.1468779,0.00022434,2]
[341644321,1731057041269,-573.41,0.00022463,2]
[341644322,1731057041279,-573.41,0.00022464,2]
[341644323,1731057041287,-573.41,0.00022464,2]
[341644324,1731057041296,-314.93712424,0.00022465,2]
[341644325,1731057041306,-500.0,0.00022465,2]
[341644326,1731057041317,-500.0,0.00022465,2]
[341644327,1731057041326,-263.2837069,0.00022465,2]
[341644328,1731057041335,-401.68108329,0.00022465,2]
[341644329,1731057041345,-500.0,0.00022465,2]
[341644330,1731057041354,-653.1,0.00022465,2]
[341644331,1731057041363,-500.0,0.00022465,2]
[341644332,1731057041373,-500.0,0.00022465,2]
[341644333,1731057041383,-500.0,0.00022465,2]
[341644334,1731057041392,-1361.54,0.00022465,2]
[341644335,1731057041401,-500.0,0.00022465,2]
[341644336,1731057041410,-495.94192153,0.00022465,2]
[341644337,1731057041420,-547.66,0.00022465,2]
[341644338,1731057041430,-500.0,0.00022465,2]
[341644339,1731057041439,-693.97,0.00022465,2]
[341644340,1731057041448,-1290.13,0.00022465,2]
[341644341,1731057041457,-500.0,0.00022465,2]
[341644342,1731057041466,-500.0,0.00022465,2]
[341644343,1731057041475,-500.0,0.00022465,2]
[341644344,1731057041484,-270.13826624,0.00022465,2]
[341644345,1731057041493,-323.85834511,0.00022465,2]
[341644346,1731057041503,-662.38,0.00022465,2]
[341644347,1731057041512,-500.0,0.00022465,2]
[341644348,1731057041521,-500.0,0.00022465,2]
[341644349,1731057041531,-500.0,0.00022465,2]
[341644350,1731057041540,-500.0,0.00022465,2]
[341644351,1731057041550,-500.0,0.00022465,2]
[341644352,1731057041561,-500.0,0.00022465,2]
[341644353,1731057041575,-500.0,0.00022465,2]
[341644354,1731057041585,-541.66879555,0.00022465,2]
[341644355,1731057041594,-500.0,0.00022465,2]
[341644356,1731057041603,-500.0,0.00022465,2]
[341644357,1731057041613,-500.0,0.00022465,2]
[341644358,1731057041623,-500.0,0.00022465,2]
[341644359,1731057041632,-500.0,0.00022465,2]
[341644360,1731057041641,-500.0,0.00022465,2]
[341644361,1731057041651,-500.0,0.00022465,2]
[341644362,1731057041662,-500.0,0.00022465,2]
[341644363,1731057041677,-533.67,0.00022465,2]
[341644364,1731057041691,-500.0,0.00022465,2]
[341644365,1731057041705,-500.0,0.00022465,2]
[341644366,1731057041717,-500.0,0.00022465,2]
[341644367,1731057041729,-500.0,0.00022465,2]
[341644368,1731057041743,-500.0,0.00022465,2]
[341644369,1731057041755,-2641.07,0.00022465,2]
[341644370,1731057041769,-500.0,0.00022465,2]
[341644371,1731057041783,-500.0,0.00022465,2]
[341644372,1731057041797,-9030.15,0.00022465,2]
[341644373,1731057041810,-500.0,0.00022465,2]
[341644374,1731057041824,-500.0,0.00022465,2]
[341644375,1731057041836,-500.0,0.00022465,2]
[341644376,1731057041848,-500.0,0.00022465,2]
[341644377,1731057041860,-500.0,0.00022465,2]
[341644378,1731057041873,-8875.04,0.00022465,2]
[341644379,1731057041886,-507.43,0.00022465,2]
[341644380,1731057041899,-500.0,0.00022465,2]
[341644381,1731057041910,-500.0,0.00022465,2]
[341644382,1731057041921,-500.0,0.00022465,2]
[341644383,1731057041933,-500.0,0.00022465,2]
[341644384,1731057041945,-500.0,0.00022465,2]
[341644385,1731057041957,-500.0,0.00022465,2]
[341644386,1731057041970,-500.0,0.00022465,2]
[341644387,1731057041981,-834.34,0.00022465,2]
[341644388,1731057041994,-905.34,0.00022465,2]
[341644389,1731057042007,-378.1070657,0.00022465,2]
[341644390,1731057042019,-500.0,0.00022465,2]
[341644391,1731057042032,-282.07478881,0.00022465,2]
[341644392,1731057042044,-500.0,0.00022465,2]
[341644393,1731057042055,-617.53453115,0.00022465,2]
[341644394,1731057042065,-500.0,0.00022465,2]
[341644395,1731057042076,-500.0,0.00022465,2]
[341644396,1731057042088,-500.0,0.00022465,2]
[341644397,1731057042103,-500.0,0.00022465,2]
[341644398,1731057042117,-500.0,0.00022465,2]
[341644399,1731057042127,-627.58,0.00022465,2]
[341644400,1731057042143,-500.0,0.00022465,2]
[341644401,1731057042154,-500.0,0.00022465,2]
[341644402,1731057042167,-500.0,0.00022465,2]
[341644403,1731057042182,-626.09,0.00022465,2]
[341644404,1731057042192,-500.0,0.00022465,2]
[341644405,1731057042203,-500.0,0.00022465,2]
[341644406,1731057042215,-500.0,0.00022465,2]
[341644407,1731057042226,-500.0,0.00022465,2]
[341644408,1731057042237,-500.0,0.00022465,2]
[341644409,1731057042248,-500.0,0.00022465,2]
[341644410,1731057042258,-3703.24,0.00022465,2]
[341644411,1731057042269,-917.0,0.00022465,2]
[341644412,1731057042281,-500.0,0.00022465,2]
[341644413,1731057042292,-500.0,0.00022465,2]
[341644414,1731057042303,-549.64,0.00022465,2]
[341644416,1731057042314,-500.0,0.00022465,2]
[341644417,1731057042325,-580.42209627,0.00022465,2]
[341644418,1731057042335,-500.0,0.00022465,2]
[341644419,1731057042345,-710.32,0.00022465,2]
[341644420,1731057042356,-500.0,0.00022465,2]
[341644421,1731057042367,-150.24173145,0.00022465,2]
[341644423,1731057042377,-500.0,0.00022465,2]
[341644425,1731057042388,-500.0,0.00022465,2]
[341644428,1731057042399,-500.0,0.00022465,2]
[341644430,1731057042409,-500.0,0.00022465,2]
[341644432,1731057042420,-500.0,0.00022465,2]
[341644434,1731057042431,-500.0,0.00022465,2]
[341644436,1731057042442,-500.0,0.00022465,2]
[341644438,1731057042453,-500.0,0.00022465,2]
[341644440,1731057042464,-500.0,0.00022465,2]
[341644442,1731057042475,-2970.62,0.00022465,2]
[341644443,1731057042486,-500.0,0.00022465,2]
[341644444,1731057042496,-1133.84,0.00022465,2]
[341644445,1731057042507,-500.0,0.00022465,2]
[341644446,1731057042518,-500.0,0.00022465,2]
[341644447,1731057042529,-1014.33,0.00022465,2]
[341644448,1731057042540,-500.0,0.00022465,2]
[341644449,1731057042551,-500.0,0.00022465,2]
[341644450,1731057042562,-500.0,0.00022465,2]
[341644451,1731057042573,-500.0,0.00022465,2]
[341644452,1731057042584,-4344.48,0.00022465,2]
[341644453,1731057042595,-500.0,0.00022465,2]
[341644454,1731057042606,-410.1468779,0.00022639,2]
[341644455,1731057042616,-500.0,0.00022682,2]
[341644458,1731057042628,-573.41,0.00022737,2]
[341644459,1731057042639,-573.41,0.00022738,2]
[341644460,1731057042649,-573.41,0.00022738,2]
[341644461,1731057042660,-500.0,0.00022739,2]
[341644462,1731057042671,-500.0,0.00022739,2]
[341644463,1731057042682,-392.67515953,0.00022739,2]
[341644464,1731057042693,-653.1,0.00022739,2]
[341644465,1731057042704,-500.0,0.00022739,2]
[341644466,1731057042716,-500.0,0.00022739,2]
[341644467,1731057042729,-535.79637136,0.00022739,2]
[341644468,1731057042740,-1361.54,0.00022739,2]
[341644469,1731057042750,-500.0,0.00022739,2]
[341644470,1731057042761,-547.66,0.00022739,2]
[341644471,1731057042773,-500.0,0.00022739,2]
[341644472,1731057042784,-693.97,0.00022739,2]
[341644473,1731057042796,-1290.13,0.00022739,2]
[341644474,1731057042922,-500.0,0.00022739,2]
[341644475,1731057042935,-500.0,0.00022739,2]
[341644476,1731057042946,-500.0,0.00022739,2]
[341644477,1731057042955,-662.38,0.00022739,2]
[341644478,1731057042964,-500.0,0.00022739,2]
[341644479,1731057042974,-500.0,0.00022739,2]
[341644480,1731057042983,-500.0,0.00022739,2]
[341644481,1731057042992,-500.0,0.00022739,2]
[341644482,1731057043001,-500.0,0.00022739,2]
[341644483,1731057043011,-500.0,0.00022739,2]
[341644484,1731057043020,-500.0,0.00022739,2]
[341644485,1731057043029,-500.0,0.00022739,2]
[341644486,1731057043038,-500.0,0.00022739,2]
[341644487,1731057043048,-565.41547369,0.00022739,2]
[341644488,1731057043057,-500.0,0.00022739,2]
[341644489,1731057043066,-500.0,0.00022739,2]
[341644490,1731057043075,-500.0,0.00022739,2]
[341644491,1731057043084,-500.0,0.00022739,2]
[341644492,1731057043093,-500.0,0.00022739,2]
[341644493,1731057043102,-533.67,0.00022739,2]
[341644494,1731057043111,-500.0,0.00022739,2]
[341644495,1731057043120,-500.0,0.00022739,2]
[341644496,1731057043129,-500.0,0.00022739,2]
[341644497,1731057043143,-500.0,0.00022739,2]
[341644498,1731057043152,-432.18017343,0.00022739,2]
[341644499,1731057043161,-2641.07,0.00022739,2]
[341644500,1731057043172,-322.36548605,0.00022739,2]
[341644501,1731057043183,-500.0,0.00022739,2]
[341644502,1731057043200,-9030.15,0.00022739,2]
[341644503,1731057043209,-362.13959531,0.00022739,2]
[341644504,1731057043220,-174.73132111,0.00022739,2]
[341644505,1731057043230,-500.0,0.00022739,2]
[341644506,1731057043240,-500.0,0.00022739,2]
[341644507,1731057043250,-500.0,0.00022739,2]
[341644508,1731057043259,-8875.04,0.00022739,2]
[341644509,1731057043269,-507.43,0.00022739,2]
[341644510,1731057043279,-500.0,0.00022739,2]
[341644511,1731057043288,-500.0,0.00022739,2]
[341644512,1731057043297,-500.0,0.00022739,2]
[341644513,1731057043306,-572.14790739,0.00022739,2]
[341644514,1731057043315,-834.34,0.00022739,2]
[341644515,1731057043324,-905.34,0.00022739,2]
[341644516,1731057043333,-500.0,0.00022739,2]
[341644517,1731057043342,-500.0,0.00022739,2]
[341644518,1731057043351,-500.0,0.00022739,2]
[341644519,1731057043361,-500.0,0.00022739,2]
[341644520,1731057043370,-627.58,0.00022739,2]
[341644521,1731057043379,-500.0,0.00022739,2]
[341644522,1731057043388,-500.0,0.00022739,2]
[341644523,1731057043397,-348.29119973,0.00022739,2]
[341644524,1731057043406,-626.09,0.00022739,2]